bitfinex/quotes_ETHUSD_20250511
["timestamp","ask_amount","ask_price","bid_price","bid_amount"]
[1746951064149,4.01139235,2492.9,2492.8,3.334]
[1746951064340,4.01155327,2492.8,2492.4,0.826]
[1746951064497,4.01173837,2492.7,2492.5,3.334]
[1746951064699,4.01173837,2492.7,2492.4,0.826]
[1746951064939,4.0114123,2492.9,2491.0,0.61682965]
[1746951064940,0.8113,2492.6,2492.0,0.826]
[1746951065143,4.01226232,2492.4,2492.1,3.334]
[1746951065315,4.01241607,2492.3,2492.1,3.334]
[1746951066151,4.01251905,2492.2,2492.1,3.334]
[1746951066308,4.0122913,2492.4,2492.1,3.334]
[1746951066509,4.01242182,2492.3,2492.1,3.334]
[1746951066809,4.01251905,2492.2,2492.1,3.334]
[1746951067547,4.01300212,2491.9,2491.8,3.31]
[1746951068640,4.77999841,2492.1,2491.8,3.31]
[1746951068833,3.309,2492.2,2491.8,3.31]
[1746951069156,4.01273979,2492.1,2491.8,3.31]
[1746951069750,3.309,2492.2,2491.8,3.31]
[1746951069971,0.15645097,2492.0,2491.8,3.64501305]
[1746951070128,3.309,2492.2,2491.8,3.64501305]
[1746951070459,3.309,2492.2,2491.8,3.31]
[1746951070659,0.15628126,2492.1,2491.8,3.31]
[1746951071875,0.15628126,2492.1,2491.9,0.8167]
[1746951072534,4.01252475,2492.2,2491.9,0.8167]
[1746951072851,4.0116856,2492.8,2492.1,0.8096]
[1746951073054,7.3169578,2493.2,2492.1,0.8096]
[1746951073258,4.01230818,2492.4,2492.2,3.31]
[1746951073451,4.01230818,2492.4,2492.3,3.31]
[1746951074122,4.56155327,2492.8,2492.1,0.8096]
[1746951074325,4.01219707,2492.4,2492.3,3.31]
[1746951074525,4.01209378,2492.5,2492.3,3.31]
[1746951074721,4.1564864,2492.4,2492.3,3.31]
[1746951075846,4.1564864,2492.4,2491.8,0.8096]
[1746951076171,0.8182,2493.6,2492.2,0.8096]
[1746951076332,0.11678369,2492.3,2492.2,0.8096]
[1746951076532,0.2240111,2493.5,2492.2,0.8096]
[1746951076735,4.01102555,2493.2,2492.2,0.8096]
[1746951076936,8.0,2493.1,2492.2,0.8096]
[1746951077230,8.11542673,2493.1,2492.2,0.8096]
[1746951077888,12.12660356,2493.1,2492.4,0.8096]
[1746951078067,8.11542673,2493.1,2492.4,0.8096]
[1746951078405,8.11542673,2493.1,2492.5,0.04011225]
[1746951078713,0.11542673,2493.1,2492.7,0.8096]
[1746951078906,0.11542673,2493.1,2492.7,0.84971226]
[1746951079205,4.12651587,2493.1,2492.7,0.84971226]
[1746951079405,4.12651587,2493.1,2492.8,13.236]
[1746951080202,0.11542673,2493.1,2492.8,13.236]
[1746951080901,4.12649939,2493.1,2492.8,13.236]
[1746951081307,4.01128334,2493.0,2492.8,13.236]
[1746951081474,0.11576589,2492.9,2492.8,13.236]
[1746951081803,4.01131986,2493.0,2492.8,13.236]
[1746951082106,0.11732467,2492.9,2492.8,13.236]
[1746951082403,0.34158076,2492.9,2492.8,13.236]
[1746951082984,4.35297311,2492.9,2492.8,13.236]
[1746951083385,0.34158076,2492.9,2492.8,14.0011]
[1746951083794,0.34158076,2492.9,2492.8,15.73221]
[1746951084002,4.01074676,2493.4,2492.8,15.73221]
[1746951084321,0.11623629,2493.3,2492.8,14.0011]
[1746951084496,0.8096,2493.8,2492.8,14.0011]
[1746951084696,4.01058883,2493.4,2492.9,0.04011217]
[1746951085037,4.12701744,2493.3,2492.8,14.0011]
[1746951085632,0.11623629,2493.3,2492.8,14.0011]
[1746951085789,0.11623629,2493.3,2493.0,0.7651]
[1746951086131,0.8096,2493.8,2493.0,0.7651]
[1746951086132,4.01038128,2493.6,2493.0,0.7651]
[1746951086286,0.11640584,2493.2,2493.0,0.7651]
[1746951086485,4.01038128,2493.6,2493.1,0.04010538]
[1746951086721,0.11589724,2493.5,2493.1,0.04010538]
[1746951087319,4.12635673,2493.5,2493.1,0.04010538]
[1746951087526,0.11589724,2493.5,2493.1,0.04010538]
[1746951087914,0.11589724,2493.5,2493.0,0.7651]
[1746951087915,4.12638521,2493.5,2493.0,0.7651]
[1746951088225,0.11589724,2493.5,2493.0,0.7651]
[1746951088386,4.01058795,2493.4,2493.0,0.7651]
[1746951088890,4.1270144,2493.3,2493.0,0.7651]
[1746951089090,4.01093174,2493.2,2493.0,0.7651]
[1746951089285,4.07649137,2493.7,2493.1,3.309]
[1746951089516,4.01078926,2493.3,2493.1,3.309]
[1746951089702,12.81960202,2493.8,2493.2,0.7746]
[1746951089703,4.0106494,2493.4,2493.2,0.7746]
[1746951090928,0.8073,2494.7,2493.3,4.07649137]
[1746951091223,4.0096406,2494.0,2493.4,1.26372019]
[1746951091414,4.0096406,2494.0,2493.4,0.7746]
[1746951091613,0.04515685,2493.9,2493.4,0.7746]
[1746951092428,4.00971837,2494.0,2493.4,0.7746]
[1746951092634,0.04515685,2493.9,2493.4,0.7746]
[1746951093041,4.05503293,2493.9,2493.4,0.7746]
[1746951093336,0.04515685,2493.9,2493.4,0.7746]
[1746951093841,0.04515685,2493.9,2493.0,3.29]
[1746951093842,4.01026628,2493.6,2493.5,3.308]
[1746951094145,4.05465128,2493.6,2493.5,3.308]
[1746951094615,4.01095306,2493.2,2493.0,0.7755]
[1746951094820,4.01066671,2493.4,2492.8,13.236]
[1746951094821,4.05427549,2493.1,2492.8,13.236]
[1746951095030,4.01123144,2493.0,2492.9,3.308]
[1746951095237,4.05407217,2493.0,2492.9,3.308]
[1746951095932,0.04284073,2493.0,2492.9,3.308]
[1746951096108,4.05407217,2493.0,2492.9,3.308]
[1746951096304,4.01139235,2492.9,2492.8,13.236]
[1746951096504,0.04258328,2492.9,2492.8,16.544]
[1746951096709,4.01093821,2493.2,2492.8,16.544]
[1746951096911,4.01126638,2493.0,2492.8,16.544]
[1746951097110,4.05397563,2492.9,2492.8,16.544]
[1746951097404,0.04258328,2492.9,2492.8,16.544]
[1746951097635,0.7839,2493.3,2492.8,17.55582494]
[1746951097835,4.05432415,2493.2,2492.8,16.544]
[1746951098036,4.01107545,2493.1,2492.8,16.544]
[1746951098235,0.04284073,2493.0,2492.8,16.544]
[1746951099082,4.01125699,2493.0,2492.8,16.544]
[1746951099364,0.04258328,2492.9,2492.8,16.544]
[1746951099773,4.01109787,2493.1,2492.8,16.544]
[1746951100268,0.04284073,2493.0,2492.8,16.544]
[1746951101239,4.01139235,2492.9,2492.8,16.544]
[1746951101436,4.05397563,2492.9,2492.8,16.544]
[1746951102077,0.04258328,2492.9,2492.8,16.544]
[1746951102444,4.01114145,2493.1,2492.8,16.544]
[1746951102748,0.04284073,2493.0,2492.8,16.544]
[1746951103073,0.04258328,2492.9,2492.8,16.544]
[1746951103246,0.7652,2493.7,2492.8,18.9731]
[1746951103448,0.04258328,2492.9,2492.8,18.9731]
[1746951103771,4.01044054,2493.5,2492.8,18.9731]
[1746951103940,0.04258328,2492.9,2492.8,18.9731]
[1746951104136,8.05471112,2494.1,2492.9,0.7747]
[1746951104455,4.05505125,2494.0,2493.1,0.7747]
[1746951104660,0.11649109,2493.9,2493.1,0.7747]
[1746951105072,0.7652,2493.8,2493.2,3.285]
[1746951105276,4.0107488,2493.3,2493.2,3.285]
[1746951105475,4.12870798,2493.3,2493.2,3.285]
[1746951105783,4.01101571,2493.2,2492.8,13.236]
[1746951105948,4.01101571,2493.2,2492.9,3.285]
[1746951106285,0.16209346,2493.1,2492.9,3.285]
[1746951107181,4.17320576,2493.1,2492.8,13.236]
[1746951107367,4.59892013,2493.1,2493.0,3.285]
[1746951107582,4.17320576,2493.1,2493.0,3.265]
[1746951107988,4.39789624,2493.1,2493.0,3.265]
[1746951108186,4.39785449,2493.1,2493.0,3.265]
[1746951111206,1.15198394,2493.1,2492.8,16.521]
[1746951111572,4.3979562,2493.1,2492.8,16.521]
[1746951112402,0.22469048,2493.0,2492.8,16.521]
[1746951112699,0.04258328,2492.9,2492.8,16.521]
[1746951113573,3.275,2493.2,2492.8,16.521]
[1746951113971,0.34253374,2493.1,2492.8,16.521]
[1746951114677,0.22470707,2493.0,2492.8,16.521]
[1746951114966,0.34270331,2493.0,2492.8,16.521]
[1746951115182,0.04258328,2492.9,2492.8,18.25057]
[1746951115621,0.04258328,2492.9,2492.8,16.521]
[1746951115830,0.04258328,2492.9,2492.8,17.3493]
[1746951116205,4.01035718,2493.6,2492.8,17.3493]
[1746951116402,4.01035718,2493.6,2492.9,0.04010553]
[1746951116603,0.34180212,2493.5,2492.9,0.04010553]
[1746951116805,0.34180212,2493.5,2492.9,1.77904608]
[1746951117398,0.34180212,2493.5,2493.0,0.8188]
[1746951117722,0.11714852,2493.5,2493.1,0.04010553]
[1746951117920,4.01013293,2493.7,2493.1,0.04010553]
[1746951118089,0.11731803,2493.4,2493.1,0.04010553]
[1746951118285,4.01030764,2493.6,2493.1,0.04010553]
[1746951118512,0.11748757,2493.3,2493.1,0.04010553]
[1746951118714,4.01030764,2493.6,2493.1,0.04010553]
[1746951118936,0.11765711,2493.2,2493.1,0.04010553]
[1746951119223,4.00995373,2493.8,2493.1,0.29989014]
[1746951119420,0.11765711,2493.2,2493.1,0.29989014]
[1746951119624,0.22464527,2493.7,2493.1,0.25978461]
[1746951119814,0.22464527,2493.7,2493.2,0.8188]
[1746951120014,0.22464527,2493.7,2493.3,0.04010091]
[1746951120015,0.11697901,2493.6,2493.3,0.04010091]
[1746951120329,0.11714852,2493.5,2493.3,0.5596186]
[1746951120627,7.27765752,2494.0,2493.3,0.5596186]
[1746951120791,0.11731803,2493.4,2493.3,0.51951769]
[1746951120996,0.11731803,2493.4,2493.2,0.8188]
[1746951120997,4.01005311,2493.8,2493.2,0.8188]
[1746951121633,0.11680952,2493.7,2493.2,0.8188]
[1746951122193,0.11680952,2493.7,2493.3,0.04010286]
[1746951122420,4.00983667,2493.9,2493.2,0.8188]
[1746951122626,4.1285663,2493.6,2493.2,0.8188]
[1746951122828,0.8242,2493.7,2492.9,0.8063]
[1746951123027,0.8242,2493.7,2493.3,3.285]
[1746951123028,4.01058795,2493.4,2493.3,3.285]
[1746951123338,4.35378429,2493.4,2493.3,3.285]
[1746951124310,4.01120741,2493.1,2492.8,13.236]
[1746951124510,4.13144191,2493.0,2492.9,3.285]
[1746951124737,4.35609013,2493.0,2492.9,3.285]
[1746951124905,0.34485869,2493.0,2492.9,3.285]
[1746951126541,4.00999896,2493.8,2492.9,9.86000465]
[1746951126708,0.10900621,2493.7,2493.0,0.8063]
[1746951126903,4.00997318,2493.8,2493.2,0.8063]
[1746951127206,0.10824763,2493.7,2493.3,0.04010394]
[1746951127537,0.22469282,2493.7,2493.3,0.04010394]
[1746951127743,0.10841712,2493.6,2493.4,0.7839]
[1746951128646,4.00946233,2494.1,2493.4,0.7839]
[1746951128847,0.10858663,2493.5,2493.4,0.7839]
[1746951129144,4.00991226,2493.9,2493.5,3.262]
[1746951129351,4.00978387,2493.9,2493.5,3.262]
[1746951129643,4.0099544,2493.8,2493.5,3.262]
[1746951129845,3.262,2494.2,2493.5,3.66659]
[1746951130043,4.2340382,2494.1,2493.5,3.66659]
[1746951130450,4.00967757,2494.0,2493.5,3.66659]
[1746951130666,0.22457587,2494.1,2493.6,0.04010046]
[1746951130817,5.691,2495.4,2493.6,0.04010046]
[1746951130818,0.7525,2495.6,2494.0,0.7839]
[1746951131016,4.00790156,2495.1,2494.3,0.7839]
[1746951131252,4.00790156,2495.1,2494.4,3.262]
[1746951131562,3.259,2495.3,2494.5,0.04008455]
[1746951131858,4.00787211,2495.1,2494.4,3.30208455]
[1746951132044,4.00776372,2495.2,2494.5,0.40859846]
[1746951133354,7.26560464,2495.3,2494.7,0.7839]
[1746951133660,3.258,2495.3,2494.7,0.7839]
[1746951134150,0.07496779,2495.2,2494.7,0.7839]
[1746951134353,4.00725555,2495.5,2494.7,0.7839]
[1746951134653,0.0881881,2495.4,2494.8,0.03130467]
[1746951135442,0.0881881,2495.4,2494.7,0.7839]
[1746951135938,0.0881881,2495.4,2494.8,0.04007785]
[1746951136142,0.07462925,2495.4,2494.9,0.8165]
[1746951137369,0.07462925,2495.4,2495.0,0.04007689]
[1746951137557,4.02014394,2495.9,2495.2,0.7869]
[1746951137760,0.07395235,2495.8,2495.3,0.04007079]
[1746951138140,0.07395235,2495.8,2495.2,0.7869]
[1746951138335,0.01355885,2495.7,2495.2,0.7869]
[1746951138554,0.07429077,2495.6,2495.2,0.7869]
[1746951138962,4.00752172,2495.4,2495.2,0.7869]
[1746951139163,0.07631677,2495.3,2495.1,3.261]
[1746951139471,0.01355885,2495.7,2495.2,0.7869]
[1746951139661,4.00697899,2495.7,2495.3,3.26]
[1746951140088,4.00679005,2495.8,2495.3,3.26]
[1746951140379,4.02018352,2495.9,2495.3,3.26]
[1746951140682,0.8274,2495.8,2495.4,3.26]
[1746951140866,4.00721298,2495.5,2495.4,3.26]
[1746951141375,0.01355885,2495.7,2495.4,3.26]
[1746951141576,4.00721298,2495.5,2495.4,3.26]
[1746951141977,4.02077183,2495.5,2495.4,3.26]
[1746951142872,4.00747141,2495.4,2494.9,0.7869]
[1746951143077,4.02117904,2495.3,2495.0,3.26]
[1746951143277,4.02117904,2495.3,2494.9,0.7869]
[1746951143663,0.43927322,2495.3,2495.0,3.26]
[1746951143854,4.02122383,2495.3,2494.9,0.7869]
[1746951144055,4.02122383,2495.3,2495.0,3.26]
[1746951145282,0.01355885,2495.3,2495.0,3.26]
[1746951145456,4.00785539,2495.1,2495.0,3.26]
[1746951145650,0.01355885,2495.5,2494.7,0.8291]
[1746951145851,4.00842999,2494.8,2494.6,13.222]
[1746951146065,4.02205686,2494.7,2494.6,13.222]
[1746951146289,4.02205686,2494.7,2494.6,16.482]
[1746951146868,4.57205686,2494.7,2494.6,16.482]
[1746951147175,12.57205686,2494.7,2494.6,13.222]
[1746951147374,13.6060997,2494.7,2494.6,13.222]
[1746951147567,4.0096514,2494.0,2493.7,0.8291]
[1746951147769,4.0096514,2494.0,2493.8,3.26]
[1746951147959,4.02304139,2494.1,2493.8,3.26]
[1746951148160,0.01355885,2494.1,2493.8,3.26]
[1746951148655,4.00945021,2494.2,2493.8,3.26]
[1746951149162,4.0092547,2494.3,2493.8,4.99121]
[1746951149363,4.0092547,2494.3,2493.9,0.04009352]
[1746951149589,0.01355885,2494.2,2493.8,3.26]
[1746951149903,4.00962788,2494.0,2493.8,3.26]
[1746951150058,0.07807234,2493.9,2493.8,3.254759]
[1746951150398,4.00969153,2494.0,2493.8,3.254759]
[1746951150571,0.07807234,2493.9,2493.8,3.254759]
[1746951151288,4.00963589,2494.0,2493.8,3.254759]
[1746951151494,0.07741547,2493.9,2493.8,3.254759]
[1746951152899,4.02259772,2494.4,2493.8,3.254759]
[1746951153200,0.07677881,2494.3,2493.8,3.254759]
[1746951153402,0.07677881,2494.3,2494.0,0.8181]
[1746951153602,0.07677881,2494.3,2494.1,0.04008896]
[1746951153915,0.7817,2496.8,2495.0,0.8181]
[1746951154200,4.00629424,2496.1,2495.2,0.8181]
[1746951154378,4.00644044,2496.0,2495.3,3.26]
[1746951154791,4.0064685,2496.0,2495.3,3.26]
[1746951154968,4.00641056,2496.0,2495.3,3.26]
[1746951155393,4.00641056,2496.0,2495.4,0.0400687]
[1746951155578,4.00615619,2496.2,2495.4,4.11121037]
[1746951155774,4.0057683,2496.4,2495.4,0.0400687]
[1746951155979,4.0056669,2496.5,2495.5,5.02625588]
[1746951156181,4.0056669,2496.5,2495.6,0.04006086]
[1746951156800,4.00528697,2496.7,2495.6,0.04006086]
[1746951157099,4.00481982,2497.0,2495.9,0.8181]
[1746951157290,3.239,2497.3,2496.1,0.8181]
[1746951157495,4.00496572,2497.0,2496.2,0.04005333]
[1746951157706,0.8213,2497.7,2496.4,4.20815588]
[1746951157911,4.00411567,2497.5,2496.5,14.08994881]
[1746951158205,4.00384368,2497.6,2496.5,14.0499]
[1746951158393,4.004004,2497.5,2496.6,3.238]
[1746951158589,4.00491323,2497.0,2496.6,3.238]
[1746951158784,4.00503737,2496.9,2496.7,3.238]
[1746951158984,4.00483985,2497.0,2496.7,3.238]
[1746951159291,4.00487695,2497.0,2496.5,14.0499]
[1746951159617,4.00476416,2497.1,2496.6,3.237]
[1746951160519,4.00452331,2497.2,2496.6,3.237]
[1746951160719,4.00458694,2497.2,2496.6,3.237]
[1746951160934,3.236,2497.5,2496.6,3.237]
[1746951161096,8.0,2497.4,2496.6,3.237]
[1746951161301,4.00466153,2497.1,2496.6,3.237]
[1746951161693,0.05974239,2497.0,2496.6,3.237]
[1746951162494,4.06465052,2497.0,2496.6,3.237]
[1746951162834,4.0054474,2496.6,2496.5,13.223]
[1746951163204,4.0660504,2496.6,2496.5,16.46]
[1746951163721,4.6160504,2496.6,2496.5,16.46]
[1746951164829,4.6160504,2496.6,2496.5,13.223]
[1746951165042,4.6160504,2496.6,2496.5,16.46]
[1746951165252,13.4035504,2496.6,2496.5,16.46]
[1746951165541,13.4035504,2496.6,2496.5,13.223]
[1746951165912,13.62614848,2496.6,2496.5,13.223]
[1746951166319,13.62614848,2496.6,2496.3,3.237]
[1746951166320,4.0057683,2496.4,2496.3,3.237]
[1746951166542,4.06541875,2496.4,2496.3,3.237]
[1746951167423,0.05965045,2496.4,2496.3,3.237]
[1746951167821,0.05965045,2496.4,2496.3,3.63691]
[1746951168025,4.00518347,2496.8,2496.3,3.63691]
[1746951168354,4.00518347,2496.8,2496.3,3.237]
[1746951168513,0.05893821,2496.7,2496.3,3.237]
[1746951168713,4.00518347,2496.8,2496.3,3.237]
[1746951169021,0.0591073,2496.6,2496.3,3.237]
[1746951169236,0.05893821,2496.7,2496.3,3.237]
[1746951169438,0.05927639,2496.5,2496.3,3.237]
[1746951169610,4.00563413,2496.5,2496.3,3.237]
[1746951169814,0.05944551,2496.4,2496.3,3.237]
[1746951170755,4.06795051,2496.4,2496.3,3.237]
[1746951171111,0.06215024,2496.4,2496.3,3.237]
[1746951171309,0.04744352,2496.4,2496.3,3.9991]
[1746951171513,8.0,2496.9,2496.3,3.9991]
[1746951171715,0.04744352,2496.4,2496.3,3.9991]
[1746951171915,8.0,2496.9,2496.3,1.48481]
[1746951172141,4.00491896,2497.0,2496.4,3.237]
[1746951172521,4.00491896,2497.0,2496.4,3.27705386]
[1746951172752,4.00432467,2497.3,2496.4,3.237]
[1746951172956,4.00468321,2497.1,2496.4,3.237]
[1746951173327,4.00473981,2497.1,2496.4,3.237]
[1746951173560,4.00473981,2497.1,2496.5,0.39991]
[1746951174261,4.00480652,2497.0,2496.5,0.39991]
[1746951174558,4.00480652,2497.0,2496.4,3.237]
[1746951174738,4.00464692,2497.1,2496.4,3.237]
[1746951175072,4.00486408,2497.0,2496.4,3.237]
[1746951175656,4.00483356,2497.0,2496.4,3.237]
[1746951175856,4.00505439,2496.9,2496.4,3.237]
[1746951176061,4.00486789,2497.0,2496.4,3.237]
[1746951176563,4.05783574,2496.9,2496.4,3.237]
[1746951176764,0.0528652,2496.9,2496.5,1.21531]
[1746951176966,3.224,2497.6,2496.5,1.25536089]
[1746951177259,0.05260855,2496.8,2496.6,13.215]
[1746951177467,0.7998,2498.2,2496.8,0.8328]
[1746951177674,4.00346993,2497.9,2497.0,0.8328]
[1746951177841,4.00354621,2497.8,2497.1,3.27603681]
[1746951178040,4.00375222,2497.7,2497.1,3.27603681]
[1746951178228,3.224,2498.4,2497.2,0.8328]
[1746951178229,4.00332275,2498.0,2497.2,0.8328]
[1746951178428,4.00311174,2498.1,2497.2,0.8328]
[1746951178636,4.00311174,2498.1,2497.4,0.8328]
[1746951178852,4.00325854,2498.0,2497.4,0.8328]
[1746951179073,0.04539603,2498.0,2497.4,0.8328]
[1746951179433,4.00338064,2497.9,2497.4,0.8328]
[1746951179633,4.0035231,2497.8,2497.4,0.8328]
[1746951179946,0.04764622,2497.7,2497.4,0.8328]
[1746951180264,0.7998,2498.3,2497.5,0.04003541]
[1746951180470,0.04781517,2497.6,2497.5,0.87283541]
[1746951180769,4.0208,2498.7,2497.5,0.8328]
[1746951181071,4.00284681,2498.3,2497.5,0.8328]
[1746951181232,4.00288332,2498.2,2497.5,0.8328]
[1746951181567,0.04680168,2498.2,2497.5,0.8328]
[1746951181729,0.04680168,2498.2,2497.6,0.8728298]
[1746951181933,0.7998,2498.7,2497.6,0.8728298]
[1746951182169,4.00313384,2498.1,2497.7,3.235]
[1746951182332,0.04713946,2498.0,2497.7,3.235]
[1746951183481,0.04713946,2498.0,2497.6,0.8328]
[1746951183769,4.00356125,2497.8,2497.7,3.235]
[1746951183998,4.05376665,2497.8,2497.7,3.235]
[1746951184129,4.05376665,2497.8,2497.0,0.8328]
[1746951184130,4.00368338,2497.7,2497.0,0.8328]
[1746951184329,4.00402109,2497.5,2497.1,3.235]
[1746951184752,0.05088122,2497.4,2497.2,3.235]
[1746951184970,0.7998,2497.5,2496.7,0.8328]
[1746951185172,0.05066063,2497.3,2496.8,3.235]
[1746951185464,4.00399081,2497.6,2496.9,0.450827]
[1746951185629,0.05082963,2497.2,2497.0,0.8328]
[1746951185836,4.0035231,2497.8,2497.1,0.04003694]
[1746951186025,4.00357927,2497.8,2497.2,0.8328]
[1746951186230,0.04920541,2497.7,2497.4,0.8328]
[1746951186451,0.04920541,2497.7,2497.5,3.235]
[1746951186672,4.00289162,2498.2,2497.7,0.8328]
[1746951186968,4.00289162,2498.2,2497.8,0.04002887]
[1746951187169,4.00317919,2498.1,2497.9,13.209]
[1746951187366,4.00242576,2498.5,2497.9,13.209]
[1746951187806,4.00313964,2498.1,2497.9,13.209]
[1746951188103,4.00320256,2498.0,2497.9,13.209]
[1746951188403,4.00308556,2498.1,2497.9,13.209]
[1746951188566,4.0168,2498.6,2497.9,13.209]
[1746951189194,4.00295054,2498.2,2497.9,13.209]
[1746951189700,4.00312719,2498.1,2497.9,13.209]
[1746951189905,4.00240144,2498.5,2497.9,13.209]
[1746951190073,4.0168,2498.6,2497.9,13.209]
[1746951190383,7.21592092,2498.8,2498.0,4.0282]
[1746951190587,4.0027344,2498.3,2498.0,4.0282]
[1746951191088,4.00304231,2498.1,2498.0,4.0282]
[1746951191502,3.214,2498.8,2498.0,4.0282]
[1746951191503,4.0012804,2499.2,2498.0,4.97874955]
[1746951191654,4.0012804,2499.2,2498.1,4.0282]
[1746951191856,8.776,2499.3,2498.1,4.0282]
[1746951191857,4.00271799,2498.4,2498.2,3.215]
[1746951192053,0.776,2499.3,2498.1,0.8132]
[1746951192288,4.00210728,2498.7,2498.2,3.215]
[1746951192488,0.776,2499.3,2498.4,0.7545]
[1746951192489,4.00152719,2499.1,2498.4,0.7545]
[1746951192863,4.00185422,2498.9,2498.4,0.7545]
[1746951193406,4.00154534,2499.1,2498.4,0.7545]
[1746951193566,0.8254,2498.5,2498.1,3.215]
[1746951193768,4.00264316,2498.4,2498.1,3.9695]
[1746951193995,4.00247331,2498.5,2498.1,5.68735]
[1746951194193,4.00164488,2499.0,2498.1,5.68735]
[1746951194366,4.00237362,2498.6,2498.1,5.68735]
[1746951194567,0.8254,2499.2,2498.1,5.68735]
[1746951194762,0.04085065,2499.1,2498.3,0.7545]
[1746951194966,3.211,2499.1,2498.3,0.7545]
[1746951195305,4.10101755,2499.0,2498.3,0.7545]
[1746951195776,0.09926943,2499.0,2498.3,0.7545]
[1746951195977,4.00176077,2498.9,2498.3,0.7545]
[1746951196285,4.00189668,2498.9,2498.3,0.7545]
[1746951196480,4.00184666,2498.9,2498.3,0.7545]
[1746951196679,0.09926943,2499.0,2498.3,0.7545]
[1746951197272,4.00189421,2498.9,2498.3,0.7545]
[1746951197810,4.1009435,2499.0,2498.3,0.7545]
[1746951198013,0.09926943,2499.0,2498.3,0.7545]
[1746951198224,4.10096158,2499.0,2498.3,0.7545]
[1746951199105,4.00177129,2498.9,2498.3,0.7545]
[1746951199320,0.05773757,2498.8,2498.3,0.7545]
[1746951199475,0.04101941,2499.0,2498.3,0.7545]
[1746951199875,4.00222298,2498.7,2498.3,1.323235]
[1746951200027,0.05799381,2498.9,2498.0,0.81]
[1746951200190,4.00288207,2498.2,2498.1,3.215]
[1746951200515,0.29862688,2498.2,2497.4,3.215]
[1746951200686,4.05804657,2498.4,2497.4,3.215]
[1746951200687,4.0346,2498.1,2497.4,3.215]
[1746951201300,4.004004,2497.5,2497.4,3.215]
[1746951201611,4.00480576,2497.0,2496.0,0.81]
[1746951201811,0.8276,2496.8,2495.2,13.70573751]
[1746951202017,0.8276,2496.8,2495.8,3.215]
[1746951202501,4.00626835,2496.1,2495.8,3.215]
[1746951202695,0.05055464,2496.0,2495.8,3.215]
[1746951202908,4.0067313,2495.8,2495.7,0.81]
[1746951203222,4.0067313,2495.8,2495.7,3.215]
[1746951203223,4.05677226,2495.8,2495.7,3.215]
[1746951204424,4.00689185,2495.7,2495.6,3.216]
[1746951204631,4.05667593,2495.7,2495.6,3.216]
[1746951204795,4.00753416,2495.3,2495.2,13.205]
[1746951204994,4.05629055,2495.3,2495.2,13.205]
[1746951205315,4.356741,2495.3,2495.2,13.205]
[1746951205499,4.0086521,2494.7,2494.4,3.216]
[1746951205825,4.0088194,2494.5,2494.4,3.216]
[1746951206015,0.04695712,2494.6,2494.4,3.216]
[1746951206319,0.0467,2494.5,2494.4,3.216]
[1746951206533,0.03557352,2494.5,2494.4,3.216]
[1746951206722,4.00861915,2494.7,2494.4,3.216]
[1746951206897,0.08236127,2494.6,2494.4,3.216]
[1746951207607,0.08236127,2494.6,2494.4,4.8585]
[1746951207818,4.30811033,2495.3,2494.4,4.8585]
[1746951208018,3.205,2494.9,2494.5,0.04008609]
[1746951208207,4.00855335,2494.7,2494.4,4.8585]
[1746951208412,4.00837735,2494.8,2494.4,4.8585]
[1746951208786,4.00776106,2495.2,2494.4,3.216]
[1746951208995,4.00828377,2494.9,2494.4,3.216]
[1746951209324,4.00862668,2494.7,2494.4,3.216]
[1746951209520,3.205,2495.1,2494.4,3.216]
[1746951209695,4.05567265,2494.6,2494.4,3.216]
[1746951209898,4.00871553,2494.6,2494.4,3.216]
[1746951210421,4.00867418,2494.6,2494.2,13.209]
[1746951210624,0.06612637,2495.0,2494.2,13.209]
[1746951210625,0.8284,2494.8,2494.3,3.218]
[1746951210922,4.00898011,2494.4,2494.3,3.218]
[1746951211127,3.204,2494.4,2494.3,3.218]
[1746951212112,7.21298011,2494.4,2494.3,3.218]
[1746951212729,4.00894694,2494.5,2494.3,3.218]
[1746951212927,4.00898011,2494.4,2494.3,3.218]
[1746951213110,7.21189008,2494.5,2494.3,3.218]
[1746951213306,3.203,2494.5,2494.3,3.218]
[1746951213620,4.05542297,2494.4,2494.3,3.218]
[1746951214828,4.00914084,2494.3,2494.2,13.209]
[1746951215021,4.81432654,2494.3,2494.2,13.209]
[1746951215224,4.00930157,2494.2,2493.8,3.218]
[1746951215422,4.00930157,2494.2,2493.2,13.219]
[1746951215423,0.759,2493.6,2493.2,13.219]
[1746951215600,0.04412767,2493.5,2493.2,16.437]
[1746951215933,4.05459228,2493.5,2493.2,16.437]
[1746951216431,0.04412767,2493.5,2493.2,18.0807]
[1746951216603,7.21210915,2493.7,2493.2,16.437]
[1746951217033,4.05472727,2493.6,2493.2,16.437]
[1746951217334,0.044385,2493.6,2493.2,16.437]
[1746951218204,4.01049402,2493.5,2493.2,16.437]
[1746951218532,4.01059841,2493.4,2493.2,16.437]
[1746951218911,4.01048499,2493.5,2493.2,16.437]
[1746951219117,4.01028235,2493.6,2493.2,16.437]
[1746951219118,3.201,2493.6,2493.2,16.437]
[1746951219300,0.06800922,2493.5,2493.2,16.437]
[1746951219600,4.07847287,2493.5,2493.2,16.437]
[1746951219800,0.06800922,2493.5,2493.2,16.437]
[1746951220432,4.07852257,2493.5,2493.2,16.437]
[1746951220630,4.12265024,2493.5,2493.2,16.437]
[1746951221043,0.11213689,2493.5,2493.2,16.437]
[1746951221204,3.201,2493.6,2493.2,16.437]
[1746951221553,3.201,2493.6,2493.2,18.16304]
[1746951221738,4.00964553,2494.0,2493.2,18.16304]
[1746951221941,3.2,2494.4,2493.4,0.8234]
[1746951222142,3.2,2494.4,2493.5,0.04009581]
[1746951222437,4.00943353,2494.2,2493.4,0.8234]
[1746951222624,4.01026008,2493.7,2493.4,0.8234]
[1746951222937,4.00920968,2494.3,2493.5,3.24310174]